[Event "EWIRCC 2019"]
[Site "Monte-Carlo"]
[Date "2019.12.01"]
[Round "9.11"]
[White "Leconte, Maria"]
[Black "Sebag, Marie"]
[Result "0-1"]
[ECO "B91"]
[WhiteElo "2244"]
[BlackElo "2443"]
[Annotator "ChessBase"]
[PlyCount "75"]
[EventDate "2019.11.28"]
[EventType "swiss"]
[EventCountry "MNC"]
[SourceTitle "playchess.com"]
[Source "ChessBase"]
[SourceQuality "1"]
[TimeControl "5400+30"]

1. e4 {[%emt 1:15:12]} c5 {[%emt 1:15:11]} 2. Nf3 {[%emt 0:00:21]} d6 {[%emt 0:00:21]} 3. d4 {[%emt 0:00:21]} cxd4 {[%emt 0:00:21]} 4. Nxd4 {[%emt 0:00:22]} Nf6 {[%emt 0:00:22]} 5. Nc3 {[%emt 0:00:21]} a6 {[%emt 0:00:21]} 6. g3 {[%emt 0:00:21]} e5 {[%emt 0:00:23]} 7. Nb3 {[%emt 0:00:21]} Nbd7 {[%emt 0:00:30]} 8. Bg2 {[%emt 0:00:24]} Be7 {[%emt 0:00:22]} 9. O-O {[%emt 0:00:28]} O-O {[%emt 0:00:22]} 10. a4 {[%emt 0:01:16]} b6 {[%emt 0:00:22]} 11. Nd5 {[%emt 0:00:28]} Bb7 {[%emt 0:00:34]} 12. Be3 {[%emt 0:00:46]} Nxd5 {[%emt 0:01:03]} 13. exd5 {[%emt 0:00:22]} Re8 {[%emt 0:01:38]} 14. Nd2 {[%emt 0:02:07]} Rc8 {[%emt 0:01:05]} 15. b3 {[%emt 0:00:40]} f5 {[%emt 0:00:55]} 16. Nc4 {[%emt 0:00:35]} Qc7 {[%emt 0:00:59]} 17. Ra2 {[%emt 0:00:49]} Bf6 {[%emt 0:00:35]} 18. a5 {[%emt 0:04:53]} b5 {[%emt 0:00:32]} 19. Nb6 {[%emt 0:00:23]} Nxb6 {[%emt 0:03:24]} 20. axb6 {[%emt 0:00:26]} Qf7 {[%emt 0:00:34]} 21. Qd2 {[%emt 0:00:41]} e4 {[%emt 0:00:27]} 22. Bf4 {[%emt 0:05:03]} Bc3 {[%emt 0:00:47]} 23. Qe2 {[%emt 0:01:04]} Qf6 {[%emt 0:00:30]} 24. h4 {[%emt 0:00:50]} Bd4 {[%emt 0:00:47]} 25. c4 {[%emt 0:00:35]} Bxb6 {[%emt 0:01:13]} 26. cxb5 {[%emt 0:00:21]} a5 {[%emt 0:00:33]} 27. Rd1 {[%emt 0:00:46]} Rc3 {[%emt 0:02:28]} 28. Bd2 {[%emt 0:00:56]} Rxb3 {[%emt 0:00:29]} 29. Bxa5 {[%emt 0:00:21]} Bc5 {[%emt 0:00:27]} 30. Qc4 {[%emt 0:01:11]} Rxg3 {[%emt 0:00:40]} 31. Kf1 {[%emt 0:00:49]} Rg4 {[%emt 0:00:50]} 32. Bb4 {[%emt 0:00:59]} e3 {[%emt 0:00:39]} 33. f4 {[%emt 0:00:41]} Qxh4 {[%emt 0:01:22]} 34. Rd4 {[%emt 0:01:13]} Bxd4 {[%emt 0:01:24]} 35. Bxd6 {[%emt 0:00:21]} Rc8 {[%emt 0:02:53]} 36. Bc7 {[%emt 0:00:55]} Rxf4+ {[%emt 0:00:27]} 37. Ke2 {[%emt 0:00:31]} Be5 {[%emt 0:00:30]} 38. Bf1 {[%emt 0:00:47]} 0-1

[Event "EWIRCC 2019"]
[Site "Monte-Carlo"]
[Date "2019.12.01"]
[Round "9.12"]
[White "Gunina, Valentina"]
[Black "Gaprindashvili, Nona"]
[Result "1-0"]
[ECO "B00"]
[WhiteElo "2509"]
[BlackElo "2275"]
[Annotator "ChessBase"]
[PlyCount "51"]
[EventDate "2019.11.28"]
[EventType "swiss"]
[EventCountry "MNC"]
[SourceTitle "playchess.com"]
[Source "ChessBase"]
[SourceQuality "1"]
[TimeControl "5400+30"]

1. e4 {[%emt 1:15:12]} b6 {[%emt 1:15:11]} 2. Bc4 {[%emt 0:00:24]} Bb7 {[%emt 0:00:22]} 3. Nc3 {[%emt 0:00:41]} e6 {[%emt 0:00:22]} 4. d3 {[%emt 0:00:43]} Bb4 {[%emt 0:00:34]} 5. Qg4 {[%emt 0:01:03]} Bxc3+ {[%emt 0:00:30]} 6. bxc3 {[%emt 0:00:22]} Qf6 {[%emt 0:00:21]} 7. Ne2 {[%emt 0:00:45]} d5 {[%emt 0:00:28]} 8. Bg5 {[%emt 0:01:00]} Qg6 {[%emt 0:00:50]} 9. Nf4 {[%emt 0:01:20]} f5 {[%emt 0:01:17]} 10. Qh4 {[%emt 0:00:37]} Qf7 {[%emt 0:00:29]} 11. exd5 {[%emt 0:00:22]} exd5 {[%emt 0:00:30]} 12. Bb3 {[%emt 0:02:20]} h6 {[%emt 0:01:21]} 13. Ne2 {[%emt 0:02:58]} Nd7 {[%emt 0:01:15]} 14. O-O {[%emt 0:01:53]} Nc5 {[%emt 0:01:49]} 15. Nd4 {[%emt 0:00:49]} Kf8 {[%emt 0:03:07]} 16. Rae1 {[%emt 0:00:29]} Qg6 {[%emt 0:01:21]} 17. Bd8 {[%emt 0:01:44]} Rc8 {[%emt 0:04:28]} 18. Re5 {[%emt 0:00:29]} Nf6 {[%emt 0:00:48]} 19. Bxf6 {[%emt 0:00:28]} gxf6 {[%emt 0:00:22]} 20. Rxf5 {[%emt 0:00:22]} Kg7 {[%emt 0:00:35]} 21. Rf3 {[%emt 0:00:22]} Kf7 {[%emt 0:00:57]} 22. Rg3 {[%emt 0:00:45]} Qh7 {[%emt 0:00:23]} 23. Qh5+ {[%emt 0:00:29]} Kf8 {[%emt 0:00:35]} 24. Rg6 {[%emt 0:00:41]} Qe7 {[%emt 0:01:55]} 25. Nf5 {[%emt 0:00:45]} Qe5 {[%emt 0:01:00]} 26. d4 {[%emt 0:00:36]} 1-0

[Event "EWIRCC 2019"]
[Site "Monte-Carlo"]
[Date "2019.12.01"]
[Round "9.13"]
[White "Bulmaga, Irina"]
[Black "Salimova, Nurgyul"]
[Result "1/2-1/2"]
[ECO "C76"]
[WhiteElo "2435"]
[BlackElo "2370"]
[Annotator "ChessBase"]
[PlyCount "248"]
[EventDate "2019.11.28"]
[EventType "swiss"]
[EventCountry "MNC"]
[SourceTitle "playchess.com"]
[Source "ChessBase"]
[SourceQuality "1"]
[TimeControl "5400+30"]

1. e4 {[%emt 1:15:11]} e5 {[%emt 1:15:11]} 2. Nf3 {[%emt 0:00:23]} Nc6 {[%emt 0:00:22]} 3. Bb5 {[%emt 0:00:23]} a6 {[%emt 0:00:21]} 4. Ba4 {[%emt 0:00:22]} g6 {[%emt 0:00:22]} 5. O-O {[%emt 0:00:27]} Bg7 {[%emt 0:00:22]} 6. c3 {[%emt 0:00:22]} d6 {[%emt 0:00:22]} 7. d4 {[%emt 0:00:25]} Bd7 {[%emt 0:00:21]} 8. Bxc6 {[%emt 0:01:05]} Bxc6 {[%emt 0:00:38]} 9. dxe5 {[%emt 0:00:26]} dxe5 {[%emt 0:00:28]} 10. Qe2 {[%emt 0:00:23]} Qe7 {[%emt 0:01:30]} 11. c4 {[%emt 0:00:31]} Nf6 {[%emt 0:01:16]} 12. Nc3 {[%emt 0:00:23]} O-O {[%emt 0:00:33]} 13. Bg5 {[%emt 0:01:07]} h6 {[%emt 0:03:19]} 14. Nd5 {[%emt 0:00:55]} Bxd5 {[%emt 0:11:55]} 15. Bxf6 {[%emt 0:00:23]} Qxf6 {[%emt 0:00:00]} 16. cxd5 {[%emt 0:00:27]} c6 {[%emt 0:00:00]} 17. Rfd1 {[%emt 0:00:43]} Rfd8 {[%emt 0:00:00]} 18. dxc6 {[%emt 0:00:51]} Qxc6 {[%emt 0:00:00]} 19. Rac1 {[%emt 0:00:50]} Rxd1+ {[%emt 0:00:00]} 20. Rxd1 {[%emt 0:00:21]} Rc8 {[%emt 0:00:00]} 21. h3 {[%emt 0:00:37]} Qc2 {[%emt 0:00:00]} 22. Rd8+ {[%emt 0:00:46]} Kh7 {[%emt 0:00:00]} 23. Qxc2 {[%emt 0:00:28]} Rxc2 {[%emt 0:00:00]} 24. Rd2 {[%emt 0:00:30]} Rxd2 {[%emt 0:00:00]} 25. Nxd2 {[%emt 0:00:22]} Bf8 {[%emt 0:00:00]} 26. Nc4 {[%emt 0:01:06]} f6 {[%emt 0:00:00]} 27. Kf1 {[%emt 0:00:58]} Kg7 {[%emt 0:00:00]} 28. Ke2 {[%emt 0:00:24]} Kf7 {[%emt 0:00:00]} 29. Ne3 {[%emt 0:00:48]} Ke6 {[%emt 0:00:00]} 30. Nd5 {[%emt 0:00:22]} Bc5 {[%emt 0:01:30]} 31. f3 {[%emt 0:00:25]} Bd4 {[%emt 0:02:00]} 32. b3 {[%emt 0:00:22]} f5 {[%emt 0:00:30]} 33. Kd3 {[%emt 0:00:37]} Kd6 {[%emt 0:01:35]} 34. Kc4 {[%emt 0:01:01]} Bf2 {[%emt 0:00:38]} 35. a4 {[%emt 0:00:28]} Bg1 {[%emt 0:00:41]} 36. a5 {[%emt 0:01:14]} Bf2 {[%emt 0:00:25]} 37. b4 {[%emt 0:00:27]} Bh4 {[%emt 0:01:48]} 38. Nc3 {[%emt 0:07:44]} Be1 {[%emt 0:00:53]} 39. Na4 {[%emt 0:00:27]} Bf2 {[%emt 0:00:57]} 40. Nc5 {[%emt 0:00:31]} Kc6 {[%emt 0:00:33]} 41. Ne6 {[%emt 0:00:47]} fxe4 {[%emt 0:00:28]} 42. fxe4 {[%emt 0:00:25]} b5+ {[%emt 0:00:59]} 43. axb6 {[%emt 0:00:35]} Bxb6 {[%emt 0:00:22]} 44. Nf8 {[%emt 0:01:01]} g5 {[%emt 0:00:21]} 45. Ne6 {[%emt 0:00:43]} a5 {[%emt 0:00:37]} 46. bxa5 {[%emt 0:00:35]} Bxa5 {[%emt 0:00:20]} 47. Ng7 {[%emt 0:00:36]} Bd8 {[%emt 0:00:33]} 48. g4 {[%emt 0:01:01]} Be7 {[%emt 0:00:21]} 49. Nf5 {[%emt 0:00:25]} Bf8 {[%emt 0:00:21]} 50. Ne3 {[%emt 0:01:00]} Bc5 {[%emt 0:00:35]} 51. Nd5 {[%emt 0:00:44]} Bf8 {[%emt 0:00:32]} 52. Nf6 {[%emt 0:00:51]} Bg7 {[%emt 0:00:42]} 53. Nh5 {[%emt 0:00:25]} Bf8 {[%emt 0:00:21]} 54. Ng3 {[%emt 0:00:20]} Be7 {[%emt 0:00:29]} 55. Kd3 {[%emt 0:00:43]} Kc5 {[%emt 0:00:36]} 56. Nf5 {[%emt 0:02:14]} Bf8 57. Kc3 {[%emt 0:00:00]} Kb5 {[%emt 0:00:45]} 58. Ng3 {[%emt 0:00:00]} Be7 {[%emt 0:00:40]} 59. Ne2 {[%emt 0:00:00]} Bd6 {[%emt 0:00:41]} 60. Nc1 {[%emt 0:00:24]} Bc5 {[%emt 0:00:36]} 61. Nb3 {[%emt 0:00:37]} Bb4+ {[%emt 0:00:24]} 62. Kd3 {[%emt 0:00:22]} Bd6 {[%emt 0:00:29]} 63. Nd2 {[%emt 0:00:24]} Kc5 {[%emt 0:00:36]} 64. Nf3 {[%emt 0:01:03]} Bc7 {[%emt 0:00:30]} 65. h4 {[%emt 0:00:57]} gxh4 {[%emt 0:00:22]} 66. Nxh4 {[%emt 0:00:22]} Bd6 {[%emt 0:00:57]} 67. Nf5 {[%emt 0:00:57]} Bf8 {[%emt 0:00:21]} 68. Kc3 {[%emt 0:00:29]} Kb5 {[%emt 0:00:24]} 69. Kd3 {[%emt 0:00:35]} Kc5 {[%emt 0:00:21]} 70. Ke3 {[%emt 0:00:28]} Kc4 {[%emt 0:00:29]} 71. Kf3 {[%emt 0:00:22]} Kd3 {[%emt 0:00:36]} 72. Ne3 {[%emt 0:00:47]} Be7 {[%emt 0:00:30]} 73. Nf1 {[%emt 0:00:28]} Bh4 {[%emt 0:00:27]} 74. Ne3 {[%emt 0:00:23]} Be7 {[%emt 0:00:25]} 75. Nd5 {[%emt 0:00:23]} Bf8 {[%emt 0:00:37]} 76. Nb6 {[%emt 0:00:42]} Kd4 {[%emt 0:00:28]} 77. Nd7 {[%emt 0:00:24]} Be7 {[%emt 0:00:25]} 78. Nb6 {[%emt 0:00:24]} Bf8 {[%emt 0:00:25]} 79. Nd5 {[%emt 0:00:22]} Ba3 {[%emt 0:00:37]} 80. Nc7 {[%emt 0:00:34]} Bc1 {[%emt 0:00:35]} 81. Ne6+ {[%emt 0:00:30]} Kc4 {[%emt 0:00:34]} 82. Nd8 {[%emt 0:00:35]} Bg5 {[%emt 0:00:44]} 83. Nc6 {[%emt 0:00:46]} Bf4 {[%emt 0:00:28]} 84. Nd8 {[%emt 0:00:28]} Bg5 {[%emt 0:00:25]} 85. Ne6 {[%emt 0:00:22]} Bc1 {[%emt 0:00:28]} 86. Nf8 {[%emt 0:00:34]} Bg5 {[%emt 0:00:29]} 87. Ng6 {[%emt 0:00:34]} Kd4 {[%emt 0:00:23]} 88. Nf8 {[%emt 0:00:22]} Kc4 {[%emt 0:00:25]} 89. Ne6 {[%emt 0:00:22]} Bc1 {[%emt 0:00:23]} 90. Ke2 {[%emt 0:00:26]} Bg5 {[%emt 0:00:39]} 91. Kf2 {[%emt 0:00:40]} Kd3 {[%emt 0:00:44]} 92. Kf3 {[%emt 0:00:22]} Kc4 {[%emt 0:00:38]} 93. Nf8 {[%emt 0:00:25]} Bc1 {[%emt 0:00:32]} 94. Ng6 {[%emt 0:00:29]} Kd4 {[%emt 0:00:30]} 95. Ne7 {[%emt 0:00:22]} Bf4 {[%emt 0:00:29]} 96. Nc6+ {[%emt 0:00:57]} Kd3 {[%emt 0:00:44]} 97. Nd8 {[%emt 0:00:22]} Bg5 {[%emt 0:00:34]} 98. Nf7 {[%emt 0:00:29]} Kd4 {[%emt 0:00:34]} 99. Nd6 {[%emt 0:00:25]} Bc1 {[%emt 0:00:28]} 100. Nf5+ {[%emt 0:00:37]} Kd3 {[%emt 0:00:29]} 101. Nh4 {[%emt 0:00:30]} Bg5 {[%emt 0:00:32]} 102. Ng6 {[%emt 0:00:26]} Kd4 {[%emt 0:00:25]} 103. Nf8 {[%emt 0:00:23]} Bc1 {[%emt 0:00:38]} 104. Nd7 {[%emt 0:00:22]} Bg5 {[%emt 0:00:29]} 105. Nb8 {[%emt 0:00:21]} Bf4 {[%emt 0:00:22]} 106. Nc6+ {[%emt 0:00:26]} Kc5 {[%emt 0:00:33]} 107. Nd8 {[%emt 0:00:26]} Bg5 {[%emt 0:00:42]} 108. Nf7 {[%emt 0:00:33]} Bf4 {[%emt 0:00:22]} 109. g5 {[%emt 0:00:41]} hxg5 {[%emt 0:00:33]} 110. Kg4 {[%emt 0:00:21]} Kd4 {[%emt 0:00:30]} 111. Nd6 {[%emt 0:00:22]} Kc5 {[%emt 0:00:31]} 112. Ne8 {[%emt 0:00:23]} Kd4 {[%emt 0:00:24]} 113. Nf6 {[%emt 0:00:21]} Ke3 {[%emt 0:00:31]} 114. Kf5 {[%emt 0:00:27]} Kd3 {[%emt 0:00:40]} 115. Ng4 {[%emt 0:00:23]} Kd4 {[%emt 0:00:23]} 116. Nf6 {[%emt 0:00:29]} Kd3 {[%emt 0:00:27]} 117. Ng4 {[%emt 0:00:47]} Kd4 {[%emt 0:00:21]} 118. Nh6 {[%emt 0:00:21]} Kd3 {[%emt 0:00:30]} 119. Ng4 {[%emt 0:01:10]} Kd4 {[%emt 0:00:23]} 120. Nf6 {[%emt 0:00:23]} Kd3 {[%emt 0:00:23]} 121. Nh5 {[%emt 0:00:29]} g4 {[%emt 0:00:55]} 122. Nxf4+ {[%emt 0:00:23]} exf4 {[%emt 0:00:21]} 123. Kxf4 {[%emt 0:00:22]} g3 {[%emt 0:00:21]} 124. Kxg3 {[%emt 0:00:22]} Kxe4 {[%emt 0:00:21]} 1/2-1/2

[Event "EWIRCC 2019"]
[Site "Monte-Carlo"]
[Date "2019.12.01"]
[Round "9.14"]
[White "Belenkaya, Dina"]
[Black "Worek, Joanna"]
[Result "1/2-1/2"]
[ECO "B70"]
[WhiteElo "2302"]
[BlackElo "2316"]
[Annotator "ChessBase"]
[PlyCount "151"]
[EventDate "2019.11.28"]
[EventType "swiss"]
[EventCountry "MNC"]
[SourceTitle "playchess.com"]
[Source "ChessBase"]
[SourceQuality "1"]
[TimeControl "5400+30"]

1. e4 {[%emt 1:15:11]} c5 {[%emt 1:15:11]} 2. Nc3 {[%emt 0:00:21]} Nc6 {[%emt 0:00:21]} 3. Nge2 {[%emt 0:00:21]} g6 {[%emt 0:00:30]} 4. d4 {[%emt 0:00:22]} cxd4 {[%emt 0:00:22]} 5. Nxd4 {[%emt 0:00:21]} Bg7 {[%emt 0:00:26]} 6. Nf3 {[%emt 0:00:22]} Nf6 {[%emt 0:00:47]} 7. h3 {[%emt 0:00:47]} d6 {[%emt 0:00:36]} 8. Bc4 {[%emt 0:00:22]} O-O {[%emt 0:00:24]} 9. O-O {[%emt 0:00:22]} a6 {[%emt 0:00:41]} 10. Re1 {[%emt 0:00:23]} b5 {[%emt 0:00:48]} 11. Bb3 {[%emt 0:00:24]} Bb7 {[%emt 0:00:56]} 12. Nd5 {[%emt 0:02:28]} Na5 {[%emt 0:01:34]} 13. Bg5 {[%emt 0:01:49]} Nxb3 {[%emt 0:00:22]} 14. axb3 {[%emt 0:00:24]} Rc8 {[%emt 0:00:40]} 15. Bxf6 {[%emt 0:02:16]} exf6 {[%emt 0:00:22]} 16. c3 {[%emt 0:00:27]} Re8 {[%emt 0:00:45]} 17. Qd3 {[%emt 0:00:54]} Rb8 {[%emt 0:03:48]} 18. b4 {[%emt 0:00:32]} Qd7 {[%emt 0:01:32]} 19. Rad1 {[%emt 0:02:44]} Rbd8 {[%emt 0:01:29]} 20. Nd2 {[%emt 0:03:09]} Qc6 {[%emt 0:01:57]} 21. Nb3 {[%emt 0:01:41]} f5 {[%emt 0:01:12]} 22. Na5 {[%emt 0:02:15]} Qd7 {[%emt 0:01:36]} 23. exf5 {[%emt 0:00:49]} Rxe1+ {[%emt 0:02:13]} 24. Rxe1 {[%emt 0:00:21]} Bxd5 {[%emt 0:00:22]} 25. Qxd5 {[%emt 0:00:24]} Re8 {[%emt 0:00:24]} 26. Re3 {[%emt 0:03:08]} gxf5 {[%emt 0:01:39]} 27. Rxe8+ {[%emt 0:00:30]} Qxe8 {[%emt 0:00:22]} 28. Kf1 {[%emt 0:00:33]} Be5 {[%emt 0:00:33]} 29. Nc6 {[%emt 0:00:24]} Kg7 {[%emt 0:00:55]} 30. g3 {[%emt 0:00:23]} Qa8 {[%emt 0:01:33]} 31. Qf3 {[%emt 0:00:25]} Bf6 {[%emt 0:00:34]} 32. Kg2 {[%emt 0:00:30]} Qe8 {[%emt 0:00:31]} 33. Qd5 {[%emt 0:00:30]} Qe2 {[%emt 0:00:21]} 34. Qxf5 {[%emt 0:00:26]} Qxb2 {[%emt 0:00:23]} 35. Qg4+ {[%emt 0:00:49]} Kf8 {[%emt 0:00:21]} 36. Qc8+ {[%emt 0:00:25]} Kg7 {[%emt 0:00:21]} 37. Nb8 {[%emt 0:00:30]} Qxc3 {[%emt 0:00:23]} 38. Qg4+ {[%emt 0:00:24]} Kh8 {[%emt 0:00:25]} 39. Nd7 {[%emt 0:00:24]} Bg7 {[%emt 0:00:42]} 40. Nc5 {[%emt 0:00:38]} h6 {[%emt 0:01:04]} 41. Nd7 {[%emt 0:00:36]} Qc6+ {[%emt 0:00:29]} 42. Kh2 {[%emt 0:00:22]} d5 {[%emt 0:00:22]} 43. Qf5 {[%emt 0:00:36]} Qe6 {[%emt 0:00:26]} 44. Qxe6 {[%emt 0:00:36]} fxe6 {[%emt 0:00:21]} 45. Nc5 {[%emt 0:00:21]} e5 {[%emt 0:00:21]} 46. Kg2 {[%emt 0:00:30]} Bf8 {[%emt 0:00:30]} 47. Nxa6 {[%emt 0:01:01]} Bd6 {[%emt 0:00:22]} 48. Kf3 {[%emt 0:00:00]} Kg7 {[%emt 0:00:21]} 49. Ke3 {[%emt 0:00:07]} Kf6 {[%emt 0:00:22]} 50. f3 {[%emt 0:00:35]} Ke6 {[%emt 0:00:22]} 51. g4 {[%emt 0:00:27]} Kd7 {[%emt 0:00:22]} 52. h4 {[%emt 0:00:27]} Ke6 {[%emt 0:00:32]} 53. Kd3 {[%emt 0:00:29]} Kd7 {[%emt 0:00:26]} 54. Nc5+ {[%emt 0:00:34]} Ke7 {[%emt 0:00:39]} 55. g5 {[%emt 0:00:25]} hxg5 {[%emt 0:00:22]} 56. hxg5 {[%emt 0:00:22]} Kf7 {[%emt 0:00:25]} 57. Kc3 {[%emt 0:00:46]} Kg6 {[%emt 0:00:33]} 58. Ne6 {[%emt 0:00:36]} Kf5 {[%emt 0:00:21]} 59. Nd8 {[%emt 0:00:20]} Be7 {[%emt 0:00:27]} 60. Nc6 {[%emt 0:00:34]} Bxg5 {[%emt 0:00:23]} 61. Na7 {[%emt 0:00:22]} Kf4 {[%emt 0:00:27]} 62. Nxb5 {[%emt 0:00:22]} Kxf3 {[%emt 0:00:23]} 63. Nc7 {[%emt 0:00:35]} Ke4 {[%emt 0:00:29]} 64. b5 {[%emt 0:00:24]} Be3 {[%emt 0:00:32]} 65. Ne6 {[%emt 0:01:16]} d4+ {[%emt 0:00:33]} 66. Kc2 {[%emt 0:00:35]} d3+ {[%emt 0:00:40]} 67. Kc3 {[%emt 0:00:21]} d2 {[%emt 0:00:30]} 68. Kc2 {[%emt 0:00:22]} Kd5 {[%emt 0:00:24]} 69. Nc7+ {[%emt 0:00:48]} Kc5 {[%emt 0:00:56]} 70. Kd1 {[%emt 0:00:28]} Bh6 {[%emt 0:00:31]} 71. Ke2 {[%emt 0:00:25]} Kb6 {[%emt 0:00:32]} 72. Nd5+ {[%emt 0:00:36]} Kxb5 {[%emt 0:00:23]} 73. Nf6 {[%emt 0:00:24]} Kc4 {[%emt 0:00:28]} 74. Ng4 {[%emt 0:00:21]} Bf4 {[%emt 0:00:23]} 75. Nxe5+ {[%emt 0:00:22]} Kc3 {[%emt 0:00:22]} 76. Nf3 {[%emt 0:00:25]} 1/2-1/2

[Event "EWIRCC 2019"]
[Site "Monte-Carlo"]
[Date "2019.12.01"]
[Round "9.15"]
[White "Petrova, Irina"]
[Black "Michna, Marta"]
[Result "0-1"]
[ECO "C12"]
[WhiteElo "2109"]
[BlackElo "2366"]
[Annotator "ChessBase"]
[PlyCount "218"]
[EventDate "2019.11.28"]
[EventType "swiss"]
[EventCountry "MNC"]
[SourceTitle "playchess.com"]
[Source "ChessBase"]
[SourceQuality "1"]
[TimeControl "5400+30"]

1. d4 {[%emt 1:15:11]} Nf6 {[%emt 1:15:11]} 2. Bg5 {[%emt 0:00:22]} e6 {[%emt 0:00:25]} 3. Nc3 {[%emt 0:00:54]} d5 {[%emt 0:00:25]} 4. e4 {[%emt 0:00:21]} Bb4 {[%emt 0:00:30]} 5. e5 {[%emt 0:00:22]} h6 {[%emt 0:00:21]} 6. Bd2 {[%emt 0:00:22]} Bxc3 {[%emt 0:00:29]} 7. bxc3 {[%emt 0:00:21]} Ne4 {[%emt 0:00:24]} 8. Qg4 {[%emt 0:00:22]} g6 {[%emt 0:00:27]} 9. Bd3 {[%emt 0:00:23]} Nxd2 {[%emt 0:00:27]} 10. Kxd2 {[%emt 0:00:22]} c5 {[%emt 0:00:32]} 11. h4 {[%emt 0:00:25]} c4 {[%emt 0:01:54]} 12. Be2 {[%emt 0:00:35]} Bd7 {[%emt 0:02:04]} 13. Rh3 {[%emt 0:00:39]} Bc6 {[%emt 0:00:33]} 14. Rf3 {[%emt 0:00:38]} Nd7 {[%emt 0:00:38]} 15. Qf4 {[%emt 0:01:21]} Qe7 {[%emt 0:00:36]} 16. Nh3 {[%emt 0:00:47]} b5 {[%emt 0:00:59]} 17. a3 {[%emt 0:01:35]} a5 {[%emt 0:00:26]} 18. g4 {[%emt 0:01:59]} Rh7 {[%emt 0:00:41]} 19. g5 {[%emt 0:01:11]} h5 {[%emt 0:00:24]} 20. Qe3 {[%emt 0:00:26]} Kd8 {[%emt 0:01:51]} 21. Rg3 {[%emt 0:00:37]} Kc7 {[%emt 0:01:22]} 22. Rgg1 {[%emt 0:00:24]} Rhh8 {[%emt 0:00:52]} 23. Rgb1 {[%emt 0:00:30]} Rhb8 {[%emt 0:00:26]} 24. Nf4 {[%emt 0:00:27]} Nb6 {[%emt 0:00:43]} 25. Bd1 {[%emt 0:02:37]} Rb7 {[%emt 0:03:58]} 26. Ke1 {[%emt 0:02:09]} Rab8 {[%emt 0:00:40]} 27. Qc1 {[%emt 0:00:22]} Qf8 {[%emt 0:01:24]} 28. Ne2 {[%emt 0:00:28]} Qe7 {[%emt 0:00:40]} 29. Qf4 {[%emt 0:00:53]} Na4 {[%emt 0:00:28]} 30. Qf6 {[%emt 0:01:46]} Qf8 {[%emt 0:01:12]} 31. Qf4 {[%emt 0:00:22]} Kc8 {[%emt 0:00:35]} 32. Qc1 {[%emt 0:01:15]} Qd8 {[%emt 0:00:49]} 33. Qf4 {[%emt 0:00:59]} Qf8 {[%emt 0:00:32]} 34. Qc1 {[%emt 0:05:35]} Ra7 {[%emt 0:04:02]} 35. Qd2 {[%emt 0:00:00]} Rb6 {[%emt 0:00:00]} 36. Qc1 {[%emt 0:00:00]} Rab7 {[%emt 0:00:00]} 37. Qd2 {[%emt 0:00:00]} Rb8 {[%emt 0:00:00]} 38. Qc1 {[%emt 0:00:00]} R6b7 {[%emt 0:00:00]} 39. Qd2 {[%emt 0:00:00]} Bd7 {[%emt 0:00:00]} 40. Qc1 {[%emt 0:00:00]} Nb6 {[%emt 0:00:15]} 41. Qf4 {[%emt 0:00:00]} Na4 {[%emt 0:00:21]} 42. Qc1 {[%emt 0:00:00]} Be8 {[%emt 0:00:21]} 43. Qd2 {[%emt 0:00:00]} Qe7 {[%emt 0:00:28]} 44. Qc1 {[%emt 0:00:00]} Nb6 {[%emt 0:00:53]} 45. Qf4 {[%emt 0:00:18]} Qc7 {[%emt 0:00:32]} 46. Qc1 {[%emt 0:00:45]} Kd8 {[%emt 0:00:55]} 47. Qf4 {[%emt 0:00:22]} Nc8 {[%emt 0:00:23]} 48. Qd2 {[%emt 0:00:48]} Ne7 {[%emt 0:00:32]} 49. Ng3 {[%emt 0:05:17]} Nc6 {[%emt 0:00:43]} 50. Be2 {[%emt 0:00:00]} Kc8 {[%emt 0:00:35]} 51. Bd1 {[%emt 0:00:00]} Qb6 {[%emt 0:00:24]} 52. Ne2 {[%emt 0:00:00]} Qa7 {[%emt 0:00:47]} 53. Kf1 {[%emt 0:00:00]} Qb6 {[%emt 0:00:25]} 54. Rb2 {[%emt 0:00:00]} Qc7 {[%emt 0:00:22]} 55. Rbb1 {[%emt 0:00:00]} Rb6 {[%emt 0:01:08]} 56. Rb2 {[%emt 0:00:00]} Qb7 {[%emt 0:00:23]} 57. Rab1 {[%emt 0:00:18]} Qe7 {[%emt 0:00:26]} 58. Ra1 {[%emt 0:00:22]} R8b7 {[%emt 0:00:35]} 59. Rbb1 {[%emt 0:00:25]} Kb8 {[%emt 0:00:23]} 60. Kg2 {[%emt 0:00:45]} Qc7 {[%emt 0:01:26]} 61. Kg1 {[%emt 0:00:29]} Ne7 {[%emt 0:00:27]} 62. Ng3 {[%emt 0:00:22]} Kc8 {[%emt 0:00:22]} 63. Kg2 {[%emt 0:00:23]} Bd7 {[%emt 0:00:31]} 64. Qf4 {[%emt 0:00:27]} Be8 {[%emt 0:00:21]} 65. Qd2 {[%emt 0:00:21]} Qb8 {[%emt 0:00:23]} 66. Kg1 {[%emt 0:00:29]} Qc7 {[%emt 0:00:39]} 67. Kg2 {[%emt 0:00:21]} Kb8 {[%emt 0:00:23]} 68. Kg1 {[%emt 0:00:22]} Nc8 {[%emt 0:00:21]} 69. Ne2 {[%emt 0:00:29]} Ra6 {[%emt 0:00:24]} 70. Kg2 {[%emt 0:00:22]} Nb6 {[%emt 0:00:21]} 71. Qf4 {[%emt 0:00:28]} Na4 {[%emt 0:00:22]} 72. Qc1 {[%emt 0:00:23]} Qb6 {[%emt 0:00:34]} 73. Qd2 {[%emt 0:00:24]} Qa7 {[%emt 0:00:21]} 74. Qc1 {[%emt 0:00:21]} Bc6 {[%emt 0:01:04]} 75. Qd2 {[%emt 0:00:25]} Ka8 {[%emt 0:00:22]} 76. Kh2 {[%emt 0:00:26]} Kb8 {[%emt 0:00:29]} 77. Kg3 {[%emt 0:00:23]} Qb6 {[%emt 0:00:44]} 78. Kh2 {[%emt 0:00:24]} Qd8 {[%emt 0:00:30]} 79. Qf4 {[%emt 0:00:28]} Rab6 {[%emt 0:00:22]} 80. Qd2 {[%emt 0:00:25]} Qf8 {[%emt 0:00:30]} 81. Qc1 {[%emt 0:00:24]} Kc8 {[%emt 0:01:00]} 82. Kg1 {[%emt 0:00:21]} Qd8 {[%emt 0:00:46]} 83. Kf1 {[%emt 0:00:30]} Rb8 {[%emt 0:00:33]} 84. Qd2 {[%emt 0:00:22]} R6b7 {[%emt 0:00:22]} 85. Qc1 {[%emt 0:00:21]} Qb6 {[%emt 0:00:21]} 86. Qd2 {[%emt 0:00:22]} Qa7 {[%emt 0:00:21]} 87. Qc1 {[%emt 0:00:25]} Rc7 {[%emt 0:00:47]} 88. Qd2 {[%emt 0:00:22]} Rcb7 {[%emt 0:00:30]} 89. Qc1 {[%emt 0:00:22]} Rc7 {[%emt 0:00:33]} 90. Qd2 {[%emt 0:00:21]} Rbb7 {[%emt 0:00:21]} 91. Qc1 {[%emt 0:00:22]} Nxc3 {[%emt 0:00:39]} 92. Nxc3 {[%emt 0:00:22]} Qxd4 {[%emt 0:00:21]} 93. Qe3 {[%emt 0:00:24]} Qxh4 {[%emt 0:00:21]} 94. Ne2 {[%emt 0:01:23]} Qh1+ {[%emt 0:00:58]} 95. Ng1 {[%emt 0:00:21]} d4 {[%emt 0:00:28]} 96. Qg3 {[%emt 0:00:32]} h4 {[%emt 0:00:33]} 97. Qh3 {[%emt 0:00:21]} Qe4 {[%emt 0:00:22]} 98. Nf3 {[%emt 0:01:08]} c3 {[%emt 0:00:40]} 99. Qxh4 {[%emt 0:00:34]} Qxh4 {[%emt 0:00:24]} 100. Nxh4 {[%emt 0:00:21]} Be4 {[%emt 0:00:38]} 101. Bf3 {[%emt 0:00:33]} Bxc2 {[%emt 0:00:28]} 102. Bxb7+ {[%emt 0:00:21]} Rxb7 {[%emt 0:00:21]} 103. Rc1 {[%emt 0:00:24]} d3 {[%emt 0:00:30]} 104. Nf3 {[%emt 0:00:41]} b4 {[%emt 0:00:21]} 105. axb4 {[%emt 0:00:22]} axb4 {[%emt 0:00:20]} 106. Ra8+ {[%emt 0:03:46]} Kd7 {[%emt 0:00:35]} 107. Ke1 {[%emt 0:01:07]} b3 {[%emt 0:00:32]} 108. Raa1 {[%emt 0:02:17]} b2 {[%emt 0:00:26]} 109. Nd4 {[%emt 0:00:25]} d2+ {[%emt 0:00:25]} 0-1